[Event "30th Abu Dhabi Festival A-Open 2024"]
[Site "Abu Dhabi"]
[Date "2024.08.19"]
[Round "4.12"]
[White "Rzayev, Chingiz"]
[Black "Daulet, Alikhan"]
[Result "1-0"]
[ECO "B23"]
[WhiteElo "2134"]
[BlackElo "2008"]
[Annotator "RC"]
[PlyCount "108"]
[EventDate "2024.08.15"]
[EventType "swiss"]
[EventCountry "UAE"]
[SourceTitle "playchess.com"]
[Source "ChessBase"]
[SourceQuality "1"]
[TimeControl "5400+30"]

1. e4 {[%emt 0:00:02]} c5 {[%emt 0:00:13]} 2. Nc3 {[%emt 0:00:04]} g6 {[%emt 0:00:18]} 3. f4 {[%emt 0:00:07]} Bg7 {[%emt 0:00:41]} 4. Nf3 {[%emt 0:00:06]} Nc6 {[%emt 0:00:05]} 5. Bb5 {[%emt 0:02:30]} Nd4 {[%emt 0:00:30]} 6. Nxd4 {[%emt 0:00:05]} cxd4 {[%emt 0:00:08]} 7. Ne2 {[%emt 0:00:02]} Nh6 {[%emt 0:01:18]} 8. O-O {[%emt 0:01:13]} O-O {[%emt 0:00:06]} 9. Qe1 {[%emt 0:03:33]} d5 {[%emt 1:31:41]} 10. e5 {[%emt 0:08:57]} f6 {[%emt 0:00:30]} 11. exf6 {[%emt 0:04:57]} Rxf6 {[%emt 0:00:30]} 12. b3 {[%emt 1:14:54]} Bf5 {[%emt 0:00:30]} 13. Bd3 {[%emt 0:00:30]} Bxd3 {[%emt 0:00:00]} 14. cxd3 {[%emt 0:00:00]} e5 {[%emt 0:00:00]} 15. Bb2 {[%emt 0:00:00]} Qd6 {[%emt 0:00:00]} 16. Qh4 {[%emt 0:00:00]} exf4 {[%emt 0:00:00]} 17. Rxf4 {[%emt 0:00:00]} Re8 {[%emt 0:00:00]} 18. Rxf6 {[%emt 0:00:00]} Qxf6 {[%emt 0:00:00]} 19. Qxf6 {[%emt 0:00:00]} Bxf6 {[%emt 0:00:00]} 20. Bxd4 {[%emt 0:00:00]} Rxe2 {[%emt 0:00:00]} 21. Bxf6 {[%emt 0:00:00]} Ng4 {[%emt 0:00:00]} 22. Bc3 {[%emt 0:04:30]} d4 {[%emt 0:00:00]} 23. Bxd4 {[%emt 0:00:00]} Rxd2 {[%emt 0:00:00]} 24. Bxa7 {[%emt 0:00:00]} Ne5 {[%emt 0:00:00]} 25. Be3 {[%emt 0:00:00]} Re2 {[%emt 0:00:00]} 26. Bh6 {[%emt 0:00:00]} Nxd3 {[%emt 0:00:00]} 27. Rf1 {[%emt 0:00:00]} Re8 {[%emt 0:00:00]} 28. h3 {[%emt 0:00:00]} Nc5 {[%emt 0:02:00]} 29. h4 {[%emt 0:00:00]} Ne6 {[%emt 0:00:54]} 30. Rd1 {[%emt 0:00:00]} Re7 {[%emt 0:00:21]} 31. b4 {[%emt 0:00:00]} Kf7 {[%emt 0:01:12]} 32. b5 {[%emt 0:00:00]} Nc5 {[%emt 0:00:31]} 33. Rf1+ {[%emt 0:00:00]} Ke8 {[%emt 0:00:19]} 34. Bf8 {[%emt 0:00:00]} Re5 {[%emt 0:00:05]} 35. Bd6 {[%emt 0:00:00]} Rd5 {[%emt 0:00:02]} 36. Rf8+ {[%emt 0:00:00]} Kd7 {[%emt 0:00:03]} 37. Bxc5 {[%emt 0:00:00]} Rxc5 {[%emt 0:00:04]} 38. Rf7+ {[%emt 0:00:00]} Kc8 {[%emt 0:00:09]} 39. Rxh7 {[%emt 0:03:27]} Rxb5 {[%emt 0:00:14]} 40. Rh6 {[%emt 0:00:06]} Rb6 {[%emt 0:01:22]} 41. Kh2 {[%emt 0:00:07]} Ra6 {[%emt 0:00:09]} 42. h5 {[%emt 0:00:38]} Kd7 {[%emt 0:04:05]} 43. Rxg6 {[%emt 0:00:30]} Ra5 {[%emt 0:00:10]} 44. g4 {[%emt 0:01:34]} Rxa2+ {[%emt 0:00:05]} 45. Kg3 {[%emt 0:00:01]} Ke8 {[%emt 0:00:31]} 46. Rb6 {[%emt 0:00:10]} Ra7 {[%emt 0:00:13]} 47. Kh4 {[%emt 0:00:21]} Kf7 {[%emt 0:00:04]} 48. Rb4 {[%emt 0:02:24]} Kg7 {[%emt 0:00:15]} 49. Rb5 {[%emt 0:00:12]} Kh7 {[%emt 0:00:19]} 50. Kg5 {[%emt 0:00:40]} Kg7 {[%emt 0:00:05]} 51. h6+ {[%emt 0:00:07]} Kh7 {[%emt 0:00:03]} 52. Kh5 {[%emt 0:00:04]} Kg8 {[%emt 0:00:12]} 53. g5 {[%emt 0:00:06]} Kh7 {[%emt 0:00:27]} 54. Rd5 {[%emt 0:00:27]} b6 {[%emt 0:07:06]} 1-0

[Event "30th Abu Dhabi Festival A-Open 2024"]
[Site "Abu Dhabi"]
[Date "2024.08.20"]
[Round "5.1"]
[White "Dere Pushkar"]
[Black "Lad Mandar Pradip"]
[Result "0-1"]
[ECO "B90"]
[WhiteElo "2217"]
[BlackElo "2254"]
[Annotator "RC"]
[PlyCount "84"]
[EventDate "2024.08.15"]
[EventType "swiss"]
[EventCountry "UAE"]
[SourceTitle "playchess.com"]
[Source "ChessBase"]
[SourceQuality "1"]
[TimeControl "5400+30"]

1. e4 {[%emt 0:00:39]} c5 {[%emt 0:00:22]} 2. Nf3 {[%emt 0:00:07]} d6 {[%emt 0:00:02]} 3. d4 {[%emt 0:00:05]} cxd4 {[%emt 0:00:04]} 4. Nxd4 {[%emt 0:00:05]} Nf6 {[%emt 0:00:03]} 5. Nc3 {[%emt 0:00:05]} a6 {[%emt 0:00:03]} 6. Rg1 {[%emt 0:00:06]} h5 {[%emt 0:00:03]} 7. Be3 {[%emt 0:00:17]} g6 {[%emt 0:05:16]} 8. h3 {[%emt 0:04:19]} Bg7 {[%emt 0:19:21]} 9. Qd2 {[%emt 0:04:46]} b5 {[%emt 0:01:04]} 10. a4 {[%emt 0:02:05]} bxa4 {[%emt 0:09:57]} 11. Rxa4 {[%emt 0:07:19]} Bd7 {[%emt 0:07:48]} 12. Ra3 {[%emt 0:03:15]} a5 {[%emt 0:02:15]} 13. f4 {[%emt 0:12:39]} Nc6 {[%emt 0:01:36]} 14. Nf3 {[%emt 0:02:03]} O-O {[%emt 0:02:07]} 15. Bd3 {[%emt 0:07:30]} Nb4 {[%emt 0:07:01]} 16. f5 {[%emt 0:04:45]} Nxd3+ {[%emt 0:16:30]} 17. cxd3 {[%emt 0:02:15]} e6 {[%emt 0:02:36]} 18. g4 {[%emt 0:01:29]} exf5 {[%emt 0:01:31]} 19. gxf5 {[%emt 0:00:51]} Be8 {[%emt 0:00:05]} 20. Nd4 {[%emt 0:03:41]} Qe7 {[%emt 0:01:59]} 21. Bh6 {[%emt 0:04:06]} Qe5 {[%emt 0:03:06]} 22. Nce2 {[%emt 0:01:38]} d5 {[%emt 0:03:59]} 23. Bf4 {[%emt 0:03:14]} Qe7 {[%emt 0:00:26]} 24. e5 {[%emt 0:01:11]} Nh7 {[%emt 0:00:59]} 25. f6 {[%emt 0:00:46]} Nxf6 {[%emt 0:00:09]} 26. exf6 {[%emt 0:00:06]} Bxf6 {[%emt 0:00:05]} 27. Bg5 {[%emt 0:06:15]} Bd7 {[%emt 0:01:32]} 28. Bxf6 {[%emt 0:01:58]} Qxf6 {[%emt 0:00:05]} 29. Qg5 {[%emt 0:01:13]} Qb6 {[%emt 0:04:01]} 30. Rb3 {[%emt 0:02:01]} Qc5 {[%emt 0:00:50]} 31. Rb7 {[%emt 0:01:43]} Rfe8 {[%emt 0:02:08]} 32. Kd2 {[%emt 0:02:50]} Rab8 {[%emt 0:01:12]} 33. Rc1 {[%emt 0:07:04]} Qd6 {[%emt 0:00:20]} 34. Rcc7 {[%emt 0:01:26]} Rxb7 {[%emt 0:01:40]} 35. Rxb7 {[%emt 0:00:05]} Bc8 {[%emt 0:02:59]} 36. Rb5 {[%emt 0:00:09]} Ba6 {[%emt 0:00:38]} 37. Qxd5 {[%emt 0:00:55]} Qe7 {[%emt 0:00:19]} 38. Rb3 {[%emt 0:02:53]} Qe3+ {[%emt 0:02:41]} 39. Kc2 {[%emt 0:00:10]} Rc8+ {[%emt 0:00:23]} 40. Kb1 {[%emt 0:00:58]} Bxd3+ {[%emt 0:00:27]} 41. Ka2 {[%emt 0:00:09]} Qd2 {[%emt 0:02:30]} 42. Nf3 {[%emt 0:03:11]} Bb1+ {[%emt 0:01:18]} 0-1

[Event "30th Abu Dhabi Festival A-Open 2024"]
[Site "Abu Dhabi"]
[Date "2024.08.20"]
[Round "5.2"]
[White "Yeremyan, Alen"]
[Black "Md Imran"]
[Result "0-1"]
[ECO "B00"]
[WhiteElo "2279"]
[BlackElo "2225"]
[Annotator "RC"]
[PlyCount "82"]
[EventDate "2024.08.15"]
[EventType "swiss"]
[EventCountry "UAE"]
[SourceTitle "playchess.com"]
[Source "ChessBase"]
[SourceQuality "1"]
[TimeControl "5400+30"]

1. e4 {[%emt 0:00:34]} e6 {[%emt 0:00:38]} 2. d3 {[%emt 0:01:30]} b6 {[%emt 0:00:02]} 3. f4 {[%emt 0:03:12]} Bb7 {[%emt 0:01:04]} 4. Nf3 {[%emt 0:01:55]} c5 {[%emt 0:00:06]} 5. c3 {[%emt 0:04:30]} Nf6 {[%emt 0:04:20]} 6. g3 {[%emt 0:02:28]} Be7 {[%emt 0:00:21]} 7. Bg2 {[%emt 0:00:14]} Nc6 {[%emt 0:00:52]} 8. O-O {[%emt 0:00:49]} d5 {[%emt 0:01:26]} 9. e5 {[%emt 0:00:23]} Nd7 {[%emt 0:00:01]} 10. a3 {[%emt 0:01:26]} b5 {[%emt 0:00:59]} 11. Be3 {[%emt 0:04:52]} Qc7 {[%emt 0:07:17]} 12. Nbd2 {[%emt 0:01:35]} O-O {[%emt 0:00:13]} 13. d4 {[%emt 0:02:29]} Rac8 {[%emt 0:01:25]} 14. Bh3 {[%emt 0:06:36]} cxd4 {[%emt 0:01:44]} 15. Nxd4 {[%emt 0:07:05]} Nxd4 {[%emt 0:01:52]} 16. cxd4 {[%emt 0:08:00]} g6 {[%emt 0:09:10]} 17. Qe2 {[%emt 0:03:48]} b4 {[%emt 0:02:40]} 18. axb4 {[%emt 0:05:14]} Bxb4 {[%emt 0:00:40]} 19. g4 {[%emt 0:01:23]} a5 {[%emt 0:03:26]} 20. f5 {[%emt 0:07:34]} Qc6 {[%emt 0:01:49]} 21. Rfc1 {[%emt 0:07:14]} Qxc1+ {[%emt 0:07:56]} 22. Rxc1 {[%emt 0:00:05]} Rxc1+ {[%emt 0:00:01]} 23. Nf1 {[%emt 0:00:44]} Rc6 {[%emt 0:00:30]} 24. Bd2 {[%emt 0:05:35]} Rc2 {[%emt 0:09:51]} 25. Qe3 {[%emt 0:02:18]} Rxb2 {[%emt 0:03:45]} 26. Bxb4 {[%emt 0:02:16]} Rxb4 {[%emt 0:00:09]} 27. f6 {[%emt 0:02:07]} Kh8 {[%emt 0:02:50]} 28. Nd2 {[%emt 0:02:05]} Ba6 {[%emt 0:03:19]} 29. Nf3 {[%emt 0:00:54]} Rb1+ {[%emt 0:00:50]} 30. Kf2 {[%emt 0:00:36]} Rb2+ {[%emt 0:00:04]} 31. Kg3 {[%emt 0:01:24]} Rb7 {[%emt 0:01:20]} 32. Qa3 {[%emt 0:06:56]} Be2 {[%emt 0:00:35]} 33. Ng5 {[%emt 0:01:16]} h6 {[%emt 0:09:06]} 34. Nxe6 {[%emt 0:05:13]} Rfb8 {[%emt 0:01:37]} 35. Qc1 {[%emt 0:01:28]} Kh7 {[%emt 0:00:37]} 36. Nc5 {[%emt 0:00:58]} Rb1 {[%emt 0:02:28]} 37. Qa3 {[%emt 0:00:18]} Bc4 {[%emt 0:00:55]} 38. Qxa5 {[%emt 0:01:19]} Nxc5 {[%emt 0:00:15]} 39. Qxc5 {[%emt 0:00:04]} R8b3+ {[%emt 0:00:03]} 40. Kf2 {[%emt 0:00:37]} R1b2+ {[%emt 0:00:30]} 41. Kg1 {[%emt 0:01:13]} Rc3 {[%emt 0:00:53]} 0-1

[Event "30th Abu Dhabi Festival A-Open 2024"]
[Site "Abu Dhabi"]
[Date "2024.08.20"]
[Round "5.3"]
[White "Hamidov, Allahverdi"]
[Black "Barretto, Franz"]
[Result "0-1"]
[ECO "E88"]
[WhiteElo "2253"]
[BlackElo "2101"]
[Annotator "RC"]
[PlyCount "54"]
[EventDate "2024.08.15"]
[EventType "swiss"]
[EventCountry "UAE"]
[SourceTitle "playchess.com"]
[Source "ChessBase"]
[SourceQuality "1"]
[TimeControl "5400+30"]

1. d4 {[%emt 0:00:03]} Nf6 {[%emt 0:00:06]} 2. c4 {[%emt 0:00:05]} g6 {[%emt 0:00:04]} 3. Nc3 {[%emt 0:00:03]} Bg7 {[%emt 0:00:05]} 4. e4 {[%emt 0:00:03]} d6 {[%emt 0:00:02]} 5. f3 {[%emt 0:00:06]} O-O {[%emt 0:00:07]} 6. Be3 {[%emt 0:00:03]} e5 {[%emt 0:00:05]} 7. d5 {[%emt 0:00:03]} c6 {[%emt 0:00:19]} 8. Qd2 {[%emt 0:00:10]} cxd5 {[%emt 0:00:27]} 9. cxd5 {[%emt 0:00:03]} a6 {[%emt 0:00:05]} 10. O-O-O {[%emt 0:00:19]} Nbd7 {[%emt 0:06:54]} 11. Kb1 {[%emt 0:00:53]} b5 {[%emt 0:01:29]} 12. Rc1 {[%emt 0:01:29]} Nb6 {[%emt 0:06:44]} 13. b3 {[%emt 0:02:39]} Bd7 {[%emt 0:22:14]} 14. Nd1 {[%emt 0:03:52]} a5 {[%emt 0:06:29]} 15. a3 {[%emt 0:00:53]} Qb8 {[%emt 0:07:55]} 16. Nb2 {[%emt 0:02:50]} Qb7 {[%emt 0:03:51]} 17. Bd3 {[%emt 0:03:38]} Rfb8 {[%emt 0:03:46]} 18. Ne2 {[%emt 0:01:43]} Nh5 {[%emt 0:19:59]} 19. g4 {[%emt 0:06:37]} Nf4 {[%emt 0:00:18]} 20. Nxf4 {[%emt 0:03:38]} exf4 {[%emt 0:00:07]} 21. Bxf4 {[%emt 0:00:04]} Nc4 {[%emt 0:01:47]} 22. bxc4 {[%emt 0:18:07]} bxc4 {[%emt 0:01:36]} 23. Rc3 {[%emt 0:01:07]} cxd3 {[%emt 0:01:49]} 24. Bxd6 {[%emt 0:02:52]} Ba4 {[%emt 0:01:21]} 25. e5 {[%emt 0:06:58]} Bh6 {[%emt 0:01:31]} 26. g5 {[%emt 0:10:14]} Bxg5 {[%emt 0:00:14]} 27. Rc7 {[%emt 0:00:28]} Bxd2 {[%emt 0:00:57]} 0-1

[Event "30th Abu Dhabi Festival A-Open 2024"]
[Site "Abu Dhabi"]
[Date "2024.08.20"]
[Round "5.4"]
[White "Sham R"]
[Black "Manukyan, Sargis A."]
[Result "0-1"]
[ECO "B76"]
[WhiteElo "2103"]
[BlackElo "2211"]
[Annotator "RC"]
[PlyCount "96"]
[EventDate "2024.08.15"]
[EventType "swiss"]
[EventCountry "UAE"]
[SourceTitle "playchess.com"]
[Source "ChessBase"]
[SourceQuality "1"]
[TimeControl "5400+30"]

1. e4 {[%emt 0:00:02]} c5 {[%emt 0:00:05]} 2. Nf3 {[%emt 0:00:09]} d6 {[%emt 0:00:06]} 3. d4 {[%emt 0:00:06]} cxd4 {[%emt 0:00:05]} 4. Nxd4 {[%emt 0:00:04]} Nf6 {[%emt 0:00:04]} 5. Nc3 {[%emt 0:00:04]} g6 {[%emt 0:00:10]} 6. Be3 {[%emt 0:01:13]} Bg7 {[%emt 0:00:14]} 7. f3 {[%emt 0:00:03]} O-O {[%emt 0:00:06]} 8. Qd2 {[%emt 0:00:04]} Nc6 {[%emt 0:00:06]} 9. O-O-O {[%emt 0:00:30]} d5 {[%emt 0:00:24]} 10. exd5 {[%emt 0:00:51]} Nxd5 {[%emt 0:00:05]} 11. Nxc6 {[%emt 0:00:13]} bxc6 {[%emt 0:00:06]} 12. Bd4 {[%emt 0:00:08]} Bxd4 {[%emt 0:00:24]} 13. Qxd4 {[%emt 0:00:11]} Qb6 {[%emt 0:00:06]} 14. Na4 {[%emt 0:08:24]} Qa5 {[%emt 0:00:04]} 15. b3 {[%emt 0:01:03]} Qc7 {[%emt 0:00:25]} 16. h4 {[%emt 0:08:31]} h5 {[%emt 0:01:47]} 17. Kb2 {[%emt 0:04:32]} Nb6 {[%emt 0:10:26]} 18. Nc5 {[%emt 0:02:25]} Bf5 {[%emt 0:01:13]} 19. Qe3 {[%emt 0:11:45]} Nd5 {[%emt 0:01:52]} 20. Qd4 {[%emt 0:04:38]} Rfd8 {[%emt 0:07:36]} 21. Bd3 {[%emt 0:03:16]} Nf4 {[%emt 0:02:29]} 22. Qc3 {[%emt 0:03:09]} Bxd3 {[%emt 0:01:41]} 23. Nxd3 {[%emt 0:00:34]} Nxd3+ {[%emt 0:00:26]} 24. Rxd3 {[%emt 0:02:48]} Rxd3 {[%emt 0:00:05]} 25. Qxd3 {[%emt 0:00:29]} Rd8 {[%emt 0:01:23]} 26. Qe3 {[%emt 0:01:26]} Rd5 {[%emt 0:02:15]} 27. Re1 {[%emt 0:00:56]} e6 {[%emt 0:00:41]} 28. Qc3 {[%emt 0:01:10]} Qg3 {[%emt 0:04:24]} 29. Re2 {[%emt 0:04:28]} c5 {[%emt 0:02:11]} 30. Qc4 {[%emt 0:14:45]} Qd6 {[%emt 0:02:35]} 31. Re4 {[%emt 0:01:01]} Rd1 {[%emt 0:02:53]} 32. Qc3 {[%emt 0:06:57]} Rg1 {[%emt 0:02:26]} 33. Rc4 {[%emt 0:00:58]} Qd1 {[%emt 0:02:25]} 34. Ka3 {[%emt 0:00:19]} Rxg2 {[%emt 0:05:32]} 35. Rxc5 {[%emt 0:00:37]} Rd2 {[%emt 0:00:21]} 36. Rc8+ {[%emt 0:02:24]} Rd8 {[%emt 0:00:23]} 37. Rxd8+ {[%emt 0:01:42]} Qxd8 {[%emt 0:00:07]} 38. Qb4 {[%emt 0:01:13]} g5 {[%emt 0:04:06]} 39. hxg5 {[%emt 0:01:00]} Qf8 {[%emt 0:01:50]} 40. c4 {[%emt 0:03:57]} a5 {[%emt 0:00:19]} 41. Qxf8+ {[%emt 0:02:51]} Kxf8 {[%emt 0:00:05]} 42. Ka4 {[%emt 0:00:45]} h4 {[%emt 0:00:44]} 43. Kxa5 {[%emt 0:02:20]} h3 {[%emt 0:00:05]} 44. b4 {[%emt 0:00:18]} h2 {[%emt 0:00:05]} 45. c5 {[%emt 0:00:18]} h1=Q {[%emt 0:00:07]} 46. a4 {[%emt 0:00:20]} Qe1 {[%emt 0:01:32]} 47. Kb5 {[%emt 0:00:20]} Ke7 {[%emt 0:00:27]} 48. a5 {[%emt 0:00:02]} Kd7 {[%emt 0:00:08]} 0-1

[Event "30th Abu Dhabi Festival A-Open 2024"]
[Site "Abu Dhabi"]
[Date "2024.08.20"]
[Round "5.5"]
[White "Abdullayev, Elshad"]
[Black "Rayes, Abdul Kader"]
[Result "1/2-1/2"]
[ECO "D03"]
[WhiteElo "2205"]
[BlackElo "2064"]
[Annotator "RC"]
[PlyCount "35"]
[EventDate "2024.08.15"]
[EventType "swiss"]
[EventCountry "UAE"]
[SourceTitle "playchess.com"]
[Source "ChessBase"]
[SourceQuality "1"]
[TimeControl "5400+30"]

1. Nf3 {[%emt 0:01:04]} Nf6 {[%emt 0:03:38]} 2. d4 {[%emt 0:00:32]} e6 {[%emt 0:00:13]} 3. Bg5 {[%emt 0:00:06]} d5 {[%emt 0:00:15]} 4. Nbd2 {[%emt 0:01:05]} Nbd7 {[%emt 0:02:07]} 5. e3 {[%emt 0:07:15]} Be7 {[%emt 0:03:38]} 6. Bd3 {[%emt 0:00:11]} a6 {[%emt 0:11:51]} 7. Qe2 {[%emt 0:18:57]} c5 {[%emt 0:10:52]} 8. c3 {[%emt 0:00:24]} b5 {[%emt 0:06:32]} 9. h4 {[%emt 0:47:16]} Bb7 {[%emt 0:21:29]} 10. Ne5 {[%emt 0:04:56]} c4 {[%emt 0:09:57]} 11. Bc2 {[%emt 0:00:43]} Nxe5 {[%emt 0:07:50]} 12. dxe5 {[%emt 0:00:02]} Nd7 {[%emt 0:00:24]} 13. Nf3 {[%emt 0:01:34]} Qc7 {[%emt 0:02:25]} 14. Bf4 {[%emt 0:01:47]} h6 {[%emt 0:03:55]} 15. h5 {[%emt 0:00:37]} O-O-O {[%emt 0:12:54]} 16. O-O {[%emt 0:12:01]} Rdg8 {[%emt 0:00:30]} 17. Bg3 {[%emt 0:00:30]} g5 18. Bf4 1/2-1/2

[Event "30th Abu Dhabi Festival A-Open 2024"]
[Site "Abu Dhabi"]
[Date "2024.08.20"]
[Round "5.6"]
[White "Talgatov, Nazar"]
[Black "Samimi, Armin"]
[Result "0-1"]
[ECO "B27"]
[WhiteElo "2171"]
[BlackElo "2012"]
[Annotator "RC"]
[PlyCount "150"]
[EventDate "2024.08.15"]
[EventType "swiss"]
[EventCountry "UAE"]
[SourceTitle "playchess.com"]
[Source "ChessBase"]
[SourceQuality "1"]
[TimeControl "5400+30"]

1. e4 {[%emt 0:00:37]} c5 {[%emt 0:00:16]} 2. Nf3 {[%emt 0:01:01]} g6 {[%emt 0:00:16]} 3. d4 {[%emt 1:30:22]} cxd4 {[%emt 0:00:16]} 4. Qxd4 {[%emt 0:00:00]} Nf6 {[%emt 0:00:20]} 5. e5 {[%emt 0:00:00]} Nc6 {[%emt 0:00:15]} 6. Qa4 {[%emt 0:00:00]} Nd5 {[%emt 0:00:20]} 7. Qe4 {[%emt 0:00:00]} Nb6 {[%emt 0:00:24]} 8. Bb5 {[%emt 0:00:00]} Bg7 {[%emt 0:19:00]} 9. O-O {[%emt 0:00:00]} d5 {[%emt 0:04:02]} 10. Qh4 {[%emt 0:00:00]} h6 {[%emt 0:05:56]} 11. Re1 {[%emt 0:00:00]} e6 {[%emt 0:10:43]} 12. Qh3 {[%emt 0:00:00]} Bd7 {[%emt 0:01:22]} 13. Na3 {[%emt 0:00:00]} a6 {[%emt 0:05:42]} 14. Bf1 {[%emt 0:00:00]} Qc7 {[%emt 0:05:56]} 15. Bf4 {[%emt 0:00:00]} Ne7 {[%emt 0:04:31]} 16. Rac1 {[%emt 0:00:00]} Bc6 {[%emt 0:06:40]} 17. c4 {[%emt 0:00:00]} dxc4 {[%emt 0:01:46]} 18. Nxc4 {[%emt 0:00:00]} Nxc4 {[%emt 0:00:13]} 19. Rxc4 {[%emt 0:00:00]} Nd5 {[%emt 0:00:45]} 20. Bc1 {[%emt 0:00:00]} Nb6 {[%emt 0:06:49]} 21. Rc2 {[%emt 0:00:00]} Qe7 {[%emt 0:01:42]} 22. Nd4 {[%emt 0:00:00]} Bd5 {[%emt 0:00:14]} 23. Bd2 {[%emt 0:00:00]} Rc8 {[%emt 0:04:02]} 24. a3 {[%emt 0:00:00]} Rxc2 {[%emt 0:01:45]} 25. Nxc2 {[%emt 0:00:00]} Qd7 {[%emt 0:02:36]} 26. Bb4 {[%emt 0:00:00]} Bf8 {[%emt 0:02:12]} 27. Qe3 {[%emt 0:00:00]} Nc8 {[%emt 0:00:33]} 28. Rc1 {[%emt 0:02:31]} Bxb4 {[%emt 0:01:30]} 29. Nxb4 {[%emt 0:00:06]} Ne7 {[%emt 0:00:30]} 30. Qb6 {[%emt 0:00:41]} O-O {[%emt 0:00:55]} 31. Rc7 {[%emt 0:00:52]} Qd8 {[%emt 0:02:09]} 32. Qc5 {[%emt 0:01:13]} Nc6 {[%emt 0:03:05]} 33. Nxd5 {[%emt 0:00:47]} exd5 {[%emt 0:00:01]} 34. Rxb7 {[%emt 0:00:04]} Nxe5 {[%emt 0:00:11]} 35. Rb4 {[%emt 0:02:49]} Qd7 {[%emt 0:04:42]} 36. Bxa6 {[%emt 0:01:49]} Rd8 {[%emt 0:00:17]} 37. Rd4 {[%emt 0:00:37]} Qf5 {[%emt 0:00:23]} 38. b4 {[%emt 0:01:52]} Ra8 {[%emt 0:02:08]} 39. Qb5 {[%emt 0:02:52]} Qg5 {[%emt 0:00:54]} 40. Rd1 {[%emt 0:01:39]} Nf3+ {[%emt 0:01:31]} 41. Kh1 {[%emt 0:00:01]} Qf4 {[%emt 0:00:19]} 42. g3 {[%emt 0:00:52]} Qe4 {[%emt 0:00:15]} 43. Qd3 {[%emt 0:00:22]} Rxa6 {[%emt 0:00:10]} 44. Qxe4 {[%emt 0:00:37]} dxe4 {[%emt 0:00:06]} 45. Ra1 {[%emt 0:00:12]} Nd2 {[%emt 0:01:44]} 46. a4 {[%emt 0:00:28]} Rb6 {[%emt 0:00:55]} 47. b5 {[%emt 0:00:19]} Nb3 {[%emt 0:00:13]} 48. Rb1 {[%emt 0:00:27]} Na5 {[%emt 0:00:15]} 49. Rc1 {[%emt 0:00:42]} Kg7 {[%emt 0:01:39]} 50. Kg2 {[%emt 0:00:29]} Kf6 {[%emt 0:00:20]} 51. Rc7 {[%emt 0:00:17]} Ke6 {[%emt 0:00:55]} 52. f3 {[%emt 0:00:34]} exf3+ {[%emt 0:00:31]} 53. Kxf3 {[%emt 0:00:01]} Rb7 {[%emt 0:00:07]} 54. Rc8 {[%emt 0:00:17]} Kd5 {[%emt 0:00:22]} 55. g4 {[%emt 0:00:35]} Nb3 {[%emt 0:00:13]} 56. Rd8+ {[%emt 0:01:02]} Ke5 {[%emt 0:01:27]} 57. Re8+ {[%emt 0:00:28]} Kd6 {[%emt 0:00:41]} 58. Rd8+ {[%emt 0:00:17]} Ke7 {[%emt 0:00:25]} 59. Rc8 {[%emt 0:00:08]} Ra7 {[%emt 0:00:49]} 60. b6 {[%emt 0:00:27]} Rb7 {[%emt 0:00:01]} 61. Rh8 {[%emt 0:00:58]} Rxb6 {[%emt 0:00:16]} 62. Rxh6 {[%emt 0:00:05]} Kf6 {[%emt 0:00:12]} 63. Rh8 {[%emt 0:00:08]} Ra6 {[%emt 0:00:01]} 64. Rb8 {[%emt 0:00:16]} Nc5 {[%emt 0:00:05]} 65. h4 {[%emt 0:00:38]} Rxa4 {[%emt 0:00:13]} 66. h5 {[%emt 0:00:04]} Ra3+ {[%emt 0:00:09]} 67. Kg2 {[%emt 0:00:10]} Kg5 {[%emt 0:00:24]} 68. Rh8 {[%emt 0:00:16]} Kxg4 {[%emt 0:00:25]} 69. h6 {[%emt 0:00:01]} Rg3+ {[%emt 0:00:16]} 70. Kf1 {[%emt 0:00:05]} Rh3 {[%emt 0:00:04]} 71. h7 {[%emt 0:00:12]} Ne6 {[%emt 0:00:06]} 72. Kg2 {[%emt 0:00:11]} Ng5 {[%emt 0:00:10]} 73. Ra8 {[%emt 0:00:03]} Rxh7 {[%emt 0:00:05]} 74. Ra4+ {[%emt 0:00:03]} Kh5 {[%emt 0:00:10]} 75. Kg3 {[%emt 0:00:09]} Kh6 {[%emt 0:00:02]} 0-1

[Event "30th Abu Dhabi Festival A-Open 2024"]
[Site "Abu Dhabi"]
[Date "2024.08.20"]
[Round "5.7"]
[White "Mohammed, Tarig Elther"]
[Black "Rzayev, Chingiz"]
[Result "0-1"]
[ECO "B01"]
[WhiteElo "2061"]
[BlackElo "2134"]
[Annotator "RC"]
[PlyCount "102"]
[EventDate "2024.08.15"]
[EventType "swiss"]
[EventCountry "UAE"]
[SourceTitle "playchess.com"]
[Source "ChessBase"]
[SourceQuality "1"]
[TimeControl "5400+30"]

1. e4 {[%emt 0:00:34]} d5 {[%emt 0:00:53]} 2. exd5 {[%emt 0:00:44]} Nf6 {[%emt 0:00:04]} 3. d4 {[%emt 0:00:51]} Bg4 {[%emt 0:00:05]} 4. f3 {[%emt 0:01:01]} Bf5 {[%emt 0:00:05]} 5. g4 {[%emt 0:01:00]} Bg6 {[%emt 0:00:04]} 6. c4 {[%emt 0:00:09]} e6 {[%emt 0:00:19]} 7. Nc3 {[%emt 0:00:09]} Be7 {[%emt 0:14:09]} 8. dxe6 {[%emt 0:02:53]} Nc6 {[%emt 0:00:47]} 9. Nge2 {[%emt 0:21:02]} Nb4 {[%emt 0:10:58]} 10. Kf2 {[%emt 0:12:15]} Nc2 {[%emt 0:21:27]} 11. Rb1 {[%emt 0:01:06]} O-O {[%emt 0:01:26]} 12. Bh3 {[%emt 0:11:13]} fxe6 {[%emt 0:12:28]} 13. Bf4 {[%emt 0:19:44]} Nb4 {[%emt 0:04:02]} 14. Ra1 {[%emt 0:00:33]} Nd3+ {[%emt 0:00:56]} 15. Kg2 {[%emt 0:01:07]} Nxg4 {[%emt 0:03:44]} 16. Bxg4 {[%emt 0:01:34]} Rxf4 {[%emt 0:00:41]} 17. Bxe6+ {[%emt 0:04:21]} Kh8 {[%emt 0:00:08]} 18. Qxd3 {[%emt 0:00:44]} Bxd3 {[%emt 0:00:42]} 19. Nxf4 {[%emt 0:00:05]} Qxd4 {[%emt 0:01:19]} 20. Nxd3 {[%emt 0:02:26]} Qxd3 {[%emt 0:02:16]} 21. Rhe1 {[%emt 0:06:59]} Bh4 {[%emt 0:07:52]} 22. Re4 {[%emt 0:03:02]} Rf8 {[%emt 0:00:13]} 23. Rf1 {[%emt 0:02:02]} Qd2+ {[%emt 0:04:37]} 24. Re2 {[%emt 0:00:32]} Qd3 {[%emt 0:01:18]} 25. Re4 {[%emt 0:02:00]} Bg5 {[%emt 0:01:22]} 26. Re2 {[%emt 0:03:05]} Bd2 {[%emt 0:00:46]} 27. Rff2 {[%emt 0:01:54]} Be3 {[%emt 0:00:29]} 28. Rf1 {[%emt 0:00:26]} Bd2 {[%emt 0:01:54]} 29. Rff2 {[%emt 0:00:24]} Bxc3 {[%emt 0:00:14]} 30. bxc3 {[%emt 0:00:02]} Qg6+ {[%emt 0:03:09]} 31. Kf1 {[%emt 0:01:03]} Rd8 {[%emt 0:00:34]} 32. Bd5 {[%emt 0:00:35]} c6 {[%emt 0:00:42]} 33. Be4 {[%emt 0:00:26]} Rd1+ {[%emt 0:00:07]} 34. Re1 {[%emt 0:00:04]} Rxe1+ {[%emt 0:00:06]} 35. Kxe1 {[%emt 0:00:06]} Qg1+ {[%emt 0:00:03]} 36. Ke2 {[%emt 0:00:15]} g5 {[%emt 0:00:40]} 37. h3 {[%emt 0:01:34]} a5 {[%emt 0:00:22]} 38. f4 {[%emt 0:00:49]} gxf4 {[%emt 0:00:15]} 39. Rxf4 {[%emt 0:00:25]} Qh2+ {[%emt 0:00:07]} 40. Rf2 {[%emt 0:00:32]} Qxh3 {[%emt 0:00:08]} 41. Kd2 {[%emt 0:00:39]} Kg7 {[%emt 0:00:24]} 42. Bd3 {[%emt 0:00:25]} h5 {[%emt 0:00:15]} 43. Bf1 {[%emt 0:00:18]} Qh4 {[%emt 0:00:31]} 44. Rg2+ {[%emt 0:00:15]} Kf6 {[%emt 0:00:10]} 45. Bd3 {[%emt 0:00:34]} Qf4+ {[%emt 0:00:16]} 46. Kc2 {[%emt 0:00:09]} h4 {[%emt 0:00:13]} 47. Rg8 {[%emt 0:00:49]} Qf2+ {[%emt 0:00:51]} 48. Kb3 {[%emt 0:00:27]} Qd2 {[%emt 0:00:06]} 49. Bc2 {[%emt 0:01:03]} a4+ {[%emt 0:00:15]} 50. Kb2 {[%emt 0:00:05]} a3+ {[%emt 0:00:08]} 51. Kb3 {[%emt 0:00:08]} Qc1 {[%emt 0:00:04]} 0-1